fUST/lending_fUST_20260118
["ID","MTS","AMOUNT","RATE_DAILY","PERIOD"]
[402540675,1768702252499,-2183.78,0.00016438,2]
[402540676,1768702252508,-1083.73,0.00016438,2]
[402540677,1768702252518,-500.0,0.00016438,2]
[402540678,1768702252528,-620.11,0.00016438,2]
[402540679,1768702252537,-542.22,0.00016438,2]
[402540680,1768702252547,-500.0,0.00016438,2]
[402540681,1768702252556,-500.0,0.00016438,2]
[402540682,1768702252566,-500.3812378,0.00016438,2]
[402540683,1768702252575,-500.0,0.00016438,2]
[402540684,1768702252585,-663.38,0.00016438,2]
[402540685,1768702252595,-470.27311264,0.00016438,2]
[402540686,1768702252605,-500.0,0.00016438,2]
[402540687,1768702252614,-500.0,0.00016438,2]
[402540688,1768702252624,-1153.86,0.00016438,2]
[402540689,1768702252633,-500.0,0.00016438,2]
[402540690,1768702252642,-647.18,0.00016438,2]
[402540691,1768702252652,-5605.37,0.00016438,2]
[402540692,1768702252661,-500.0,0.00016438,2]
[402540693,1768702252671,-500.0,0.00016438,2]
[402540694,1768702252680,-500.59761141,0.00016438,2]
[402540695,1768702252690,-500.0,0.00016438,2]
[402540696,1768702252700,-500.0,0.00016438,2]
[402540697,1768702252709,-501.69632464,0.00016438,2]
[402540698,1768702252718,-500.0,0.00016438,2]
[402540699,1768702252728,-500.94709796,0.00016438,2]
[402540700,1768702252738,-572.15,0.00016438,2]
[402540701,1768702252747,-972.52,0.00016438,2]
[402540702,1768702252757,-500.0,0.00016438,2]
[402540703,1768702252767,-500.54421095,0.00016438,2]
[402540704,1768702252778,-500.0,0.00016438,2]
[402540705,1768702252788,-500.0,0.00016438,2]
[402540706,1768702252798,-166.09402,0.00016438,2]
[402540707,1768702252808,-760.37,0.00016438,2]
[402540708,1768702252818,-166.09402,0.00016438,2]
[402540709,1768702252829,-500.0,0.00016438,2]
[402540710,1768702252840,-166.09402,0.00016438,2]
[402540711,1768702252851,-501.0078924,0.00016438,2]
[402540712,1768702252861,-500.0,0.00016438,2]
[402540713,1768702252870,-500.75000517,0.00016438,2]
[402540714,1768702252879,-166.09402,0.00016438,2]
[402540715,1768702252890,-527.54029325,0.00016438,2]
[402540716,1768702252901,-500.0,0.00016438,2]
[402540717,1768702252911,-1129.62,0.00016438,2]
[402540718,1768702252924,-1284.2,0.00016438,2]
[402540719,1768702252933,-500.0,0.00016438,2]
[402540720,1768702252943,-500.88795272,0.00016438,2]
[402540721,1768702252953,-500.0,0.00016438,2]
[402540722,1768702252963,-599.45117943,0.00016438,2]
[402540723,1768702252973,-500.0,0.00016438,2]
[402540724,1768702252983,-500.25069292,0.00016438,2]
[402540725,1768702252993,-500.0,0.00016438,2]
[402540726,1768702253005,-500.0,0.00016438,2]
[402540727,1768702253014,-500.0,0.00016438,2]
[402540728,1768702253024,-500.0,0.00016438,2]
[402540729,1768702253034,-1252.71,0.00016438,2]
[402540730,1768702253044,-500.0,0.00016438,2]
[402540731,1768702253054,-501.58757431,0.00016438,2]
[402540732,1768702253063,-501.04835855,0.00016438,2]
[402540733,1768702253074,-949.62,0.00016438,2]
[402540734,1768702253084,-500.0,0.00016438,2]
[402540735,1768702253094,-226.44584841,0.00016438,2]
[402540736,1768702253104,-551.192249,0.00016438,2]
[402540737,1768702253114,-500.0,0.00016438,2]
[402540738,1768702253124,-551.192249,0.00016438,2]
[402540739,1768702253133,-1270.51,0.00016438,2]
[402540740,1768702253143,-909.98,0.00016438,2]
[402540741,1768702253153,-551.192249,0.00016438,2]
[402540742,1768702253163,-561.99904398,0.00016438,2]
[402540743,1768702253174,-880.23,0.00016438,2]
[402540744,1768702253184,-708.44,0.00016438,2]
[402540745,1768702253418,-500.76130382,0.00016438,2]
[402540746,1768702253429,-551.192249,0.00016438,2]
[402540747,1768702253439,-500.0,0.00016438,2]
[402540748,1768702253448,-500.0,0.00016438,2]
[402540749,1768702253458,-501.08485426,0.00016438,2]
[402540750,1768702253468,-549.83,0.00016438,2]
[402540751,1768702253478,-500.87488461,0.00016438,2]
[402540752,1768702253488,-500.0,0.00016438,2]
[402540753,1768702253498,-500.0,0.00016438,2]
[402540754,1768702253507,-504.65472112,0.00016438,2]
[402540755,1768702253518,-500.0,0.00016438,2]
[402540756,1768702253527,-547.33,0.00016438,2]
[402540757,1768702253537,-500.0,0.00016438,2]
[402540758,1768702253546,-509.64,0.00016438,2]
[402540759,1768702253556,-500.0,0.00016438,2]
[402540760,1768702253566,-500.0,0.00016438,2]
[402540761,1768702253574,-200.5818277,0.00016438,2]
[402540762,1768702253584,-594.34,0.00016438,2]
[402540763,1768702253593,-500.0,0.00016438,2]
[402540764,1768702253603,-332.91071706,0.00016438,2]
[402540765,1768702253613,-500.92117246,0.00016438,2]
[402540766,1768702253623,-500.0,0.00016438,2]
[402540767,1768702253633,-500.0,0.00016438,2]
[402540768,1768702253643,-715.91,0.00016438,2]
[402540769,1768702253653,-501.06195108,0.00016438,2]
[402540770,1768702253663,-500.21296987,0.00016438,2]
[402540771,1768702253672,-501.02470087,0.00016438,2]
[402540772,1768702253682,-500.0,0.00016438,2]
[402540773,1768702253692,-500.0,0.00016438,2]
[402540774,1768702253701,-500.66442645,0.00016438,2]
[402540775,1768702253711,-576.93397221,0.00016438,2]
[402540776,1768702253721,-501.5941143,0.00016438,2]
[402540777,1768702253731,-500.0,0.00016438,2]
[402540778,1768702253740,-500.0,0.00016438,2]
[402540779,1768702253750,-613.39362306,0.00016438,2]
[402540780,1768702253767,-500.0,0.00016438,2]
[402540781,1768702253777,-150.07125105,0.00016438,2]
[402540782,1768702253789,-153.0,0.00016438,2]
[402540783,1768702253799,-153.0,0.00016438,2]
[402540784,1768702253809,-153.0,0.00016438,2]
[402540785,1768702253819,-153.0,0.00016438,2]
[402540786,1768702253828,-153.0,0.00016438,2]
[402540787,1768702253838,-306.7724099,0.00016438,2]
[402540788,1768702253847,-3000.0,0.0001644,2]
[402540789,1768702253857,-3000.0,0.0001645,2]
[402540790,1768702253867,-166.0,0.00016453,2]
[402540791,1768702253876,-1367.0,0.00016457,2]
[402540792,1768702253886,-2148.0,0.00016457,2]
[402540793,1768702253895,-733.527,0.00016457,2]
[402540794,1768702253905,-199.584,0.00016457,2]
[402540795,1768702253914,-434.0,0.00016457,2]
[402540796,1768702253930,-417.0,0.00016457,2]
[402540797,1768702253940,-3000.0,0.0001646,2]
[402540798,1768702253949,-3000.0,0.0001647,2]
[402540799,1768702253959,-3000.0,0.0001648,2]
[402540800,1768702253970,-168.0,0.00016489,2]
[402540801,1768702253980,-3000.0,0.0001649,2]
[402540802,1768702253990,-384.2128394,0.000165,2]
[402540803,1768702254002,-500.0,0.000165,2]
[402540804,1768702254012,-3000.0,0.000165,2]
[402540805,1768702254022,-778.0,0.000165,2]
[402540806,1768702254032,-3000.0,0.0001651,2]
[402540807,1768702254041,-3000.0,0.0001652,2]
[402540808,1768702254051,-509.0,0.00016524,2]
[402540809,1768702254061,-3000.0,0.0001653,2]
[402540810,1768702254071,-5298.808691,0.0001654,2]
[402540811,1768702254081,-291.0,0.00016583,2]
[402540812,1768702254091,-168.43,0.00016586,2]
[402540813,1768702254100,-291.0,0.0001661,2]
[402540814,1768702254110,-174.61919141,0.00016643,2]
[402540815,1768702254120,-478.75725327,0.00016643,2]
[402540816,1768702254130,-2312.83697232,0.00016643,2]
[402540817,1768702254140,-291.0,0.00016688,2]
[402540818,1768702254149,-291.0,0.00016692,2]
[402540819,1768702254159,-247.02,0.00016709,2]
[402540820,1768702254168,-200.52352546,0.00016711,2]
[402540821,1768702254178,-500.0,0.00016712,3]
[402540822,1768702254187,-544.42,0.00016712,3]
[402540823,1768702254198,-590.81307979,0.00016712,3]
[402540824,1768702254207,-501.17715149,0.00016712,3]
[402540825,1768702254216,-500.0,0.00016712,3]
[402540826,1768702254225,-500.0,0.00016712,3]
[402540827,1768702254236,-645.99245678,0.00016712,3]
[402540828,1768702254245,-500.0,0.00016712,3]
[402540829,1768702254255,-501.57088913,0.00016712,3]
[402540830,1768702254264,-501.14196509,0.00016712,2]
[402540831,1768702254274,-3000.0,0.00016712,7]
[402540832,1768702254285,-500.0,0.00016712,2]
[402540833,1768702254295,-500.0,0.00016712,2]
[402540834,1768702254304,-500.0,0.00016712,2]
[402540835,1768702254313,-500.0,0.00016712,2]
[402540836,1768702254324,-1268.82,0.00016712,2]
[402540837,1768702254334,-500.0,0.00016712,2]
[402540838,1768702254343,-500.0,0.00016712,2]
[402540839,1768702254353,-500.0,0.00016712,2]
[402540840,1768702254362,-500.0,0.00016712,2]
[402540841,1768702254371,-501.2273038,0.00016712,2]
[402540842,1768702254380,-764.81,0.00016712,2]
[402540843,1768702254390,-500.0,0.00016712,2]
[402540844,1768702254399,-500.0,0.00016712,2]
[402540845,1768702254409,-500.0,0.00016712,2]
[402540846,1768702254419,-501.28453886,0.00016712,2]
[402540847,1768702254428,-501.42328403,0.00016712,2]
[402540848,1768702254438,-500.0,0.00016712,2]
[402540849,1768702254447,-500.0,0.00016712,2]
[402540850,1768702254457,-500.0,0.00016712,2]
[402540851,1768702254467,-500.0,0.00016712,2]
[402540852,1768702254486,-500.9756957,0.00016712,2]
[402540853,1768702254505,-500.0,0.00016712,2]
[402540854,1768702254521,-500.0,0.00016712,2]
[402540855,1768702254530,-151.0,0.00016712,2]
[402540856,1768702254539,-701.71,0.00016712,2]
[402540857,1768702254548,-1104.32,0.00016712,2]
[402540858,1768702254558,-747.62641302,0.00016712,2]
[402540859,1768702254567,-359.26559767,0.00016712,2]
[402540860,1768702254576,-500.0,0.00016712,2]
[402540861,1768702254585,-500.0,0.00016712,2]
[402540862,1768702254594,-578.61,0.00016712,2]
[402540863,1768702254604,-717.49,0.00016712,2]
[402540864,1768702254612,-500.0,0.00016712,2]
[402540865,1768702254622,-500.87134016,0.00016712,2]
[402540866,1768702254631,-500.0,0.00016712,2]
[402540867,1768702254640,-500.0,0.00016712,2]
[402540868,1768702254649,-500.0,0.00016712,2]
[402540869,1768702254659,-811.27,0.00016712,2]
[402540870,1768702254668,-536.37,0.00016712,2]
[402540871,1768702254677,-506.67,0.00016712,2]
[402540872,1768702254686,-500.0,0.00016712,2]
[402540873,1768702254696,-626.26,0.00016712,2]
[402540874,1768702254705,-500.75923791,0.00016712,2]
[402540875,1768702254714,-500.0,0.00016712,2]
[402540876,1768702254723,-487.28842733,0.00016712,2]
[402540877,1768702254732,-673.72,0.00016712,2]
[402540878,1768702254741,-500.0,0.00016712,2]
[402540879,1768702254750,-500.58475056,0.00016712,2]
[402540880,1768702254759,-501.20225458,0.00016712,2]
[402540881,1768702254768,-578.64,0.00016712,2]
[402540882,1768702254777,-500.76059186,0.00016712,2]
[402540883,1768702254787,-500.0,0.00016712,2]
[402540884,1768702254797,-1000.0,0.00016712,2]
[402540885,1768702254806,-500.0,0.00016712,2]
[402540886,1768702254815,-500.0,0.00016712,2]
[402540887,1768702254825,-500.0,0.00016712,2]
[402540888,1768702254834,-500.0,0.00016712,2]
[402540889,1768702254844,-500.0,0.00016712,2]
[402540890,1768702254853,-500.0,0.00016712,2]
[402540891,1768702254862,-500.0,0.00016712,2]
[402540892,1768702254872,-500.0,0.00016712,2]
[402540893,1768702254881,-500.0,0.00016712,2]
[402540894,1768702254891,-500.0,0.00016712,2]
[402540895,1768702254901,-500.0,0.00016712,2]
[402540896,1768702254911,-500.0,0.00016712,2]
[402540897,1768702254922,-500.0,0.00016712,2]
[402540898,1768702254932,-500.0,0.00016712,2]
[402540899,1768702254941,-500.0,0.00016712,2]
[402540900,1768702254950,-501.06577287,0.00016712,2]
[402540901,1768702254960,-500.0,0.00016712,2]
[402540902,1768702254971,-500.0,0.00016712,2]
[402540903,1768702254980,-910.27,0.00016712,2]
[402540904,1768702254989,-500.0,0.00016712,2]
[402540905,1768702254999,-232.73475268,0.00016712,2]
[402540906,1768702255006,-500.0,0.00016712,2]
[402540907,1768702255015,-500.0,0.00016712,2]
[402540908,1768702255024,-997.43,0.00016712,2]
[402540909,1768702255033,-500.0,0.00016712,2]
[402540910,1768702255042,-541.18,0.00016712,2]
[402540911,1768702255051,-515.61739668,0.00016712,2]
[402540912,1768702255060,-500.0,0.00016712,2]
[402540913,1768702255070,-500.0,0.00016712,2]
[402540914,1768702255078,-500.95561253,0.00016712,2]
[402540915,1768702255087,-501.9947923,0.00016712,2]
[402540916,1768702255096,-500.0,0.00016712,2]
[402540917,1768702255107,-500.0,0.00016712,2]
[402540918,1768702255116,-500.0,0.00016712,2]
[402540919,1768702255125,-500.70401246,0.00016712,2]
[402540920,1768702255134,-500.0,0.00016712,2]
[402540921,1768702255143,-500.0,0.00016712,2]
[402540922,1768702255152,-500.87892174,0.00016712,2]
[402540923,1768702255161,-500.0,0.00016712,2]
[402540924,1768702255170,-500.35,0.00016712,2]
[402540925,1768702255180,-500.81713867,0.00016712,2]
[402540926,1768702255189,-500.0,0.00016712,2]
[402540927,1768702255198,-500.0,0.00016712,2]
[402540928,1768702255207,-500.0,0.00016712,2]
[402540929,1768702255217,-500.76656307,0.00016712,2]
[402540930,1768702255226,-500.88703004,0.00016712,2]
[402540931,1768702255235,-501.02850784,0.00016712,2]
[402540932,1768702255245,-500.0,0.00016712,2]
[402540933,1768702255254,-548.06628505,0.00016712,2]
[402540934,1768702255263,-500.0,0.00016712,2]
[402540935,1768702255272,-775.84,0.00016712,2]
[402540936,1768702255281,-500.0,0.00016712,2]
[402540937,1768702255290,-500.0,0.00016712,2]
[402540938,1768702255300,-624.05,0.00016712,2]
[402540939,1768702255310,-830.25,0.00016712,2]
[402540940,1768702255320,-773.01,0.00016712,2]
[402540941,1768702255329,-500.72247447,0.00016712,2]
[402540942,1768702255338,-689.04,0.00016712,2]
[402540943,1768702255350,-542.52,0.00016712,2]
[402540944,1768702255359,-500.93116459,0.00016712,2]
[402540945,1768702255369,-500.0,0.00016712,2]
[402540946,1768702255378,-500.98794652,0.00016712,2]
[402540947,1768702255388,-596.18,0.00016712,2]
[402540948,1768702255397,-500.0,0.00016712,2]
[402540949,1768702255407,-500.0,0.00016712,2]
[402540950,1768702255416,-500.85397432,0.00016712,2]
[402540951,1768702255426,-500.43860507,0.00016712,2]
[402540952,1768702255435,-713.08,0.00016712,2]
[402540953,1768702255444,-291.23431375,0.00016712,2]
[402540954,1768702255453,-501.36539051,0.00016712,2]
[402540955,1768702255462,-500.72810541,0.00016712,2]
[402540956,1768702255471,-500.0,0.00016712,2]
[402540957,1768702255480,-1174.95,0.00016712,2]
[402540958,1768702255490,-500.0,0.00016712,2]
[402540959,1768702255499,-500.7045947,0.00016712,2]
[402540960,1768702255510,-500.0,0.00016712,2]
[402540961,1768702255519,-500.81002498,0.00016712,2]
[402540962,1768702255528,-500.0,0.00016712,2]
[402540963,1768702255537,-1023.55,0.00016712,2]
[402540964,1768702255547,-500.0,0.00016712,2]
[402540965,1768702255556,-500.8932302,0.00016712,2]
[402540966,1768702255565,-500.0,0.00016712,2]
[402540967,1768702255575,-500.0,0.00016712,2]
[402540968,1768702255584,-500.0,0.00016712,2]
[402540969,1768702255593,-500.0,0.00016712,2]
[402540970,1768702255603,-500.0,0.00016712,2]
[402540971,1768702255612,-501.22716546,0.00016712,2]
[402540972,1768702255622,-500.0,0.00016712,2]
[402540973,1768702255631,-500.0,0.00016712,2]
[402540974,1768702255640,-500.0,0.00016712,2]
[402540975,1768702255649,-500.0,0.00016712,2]
[402540976,1768702255659,-1157.06,0.00016712,2]
[402540977,1768702255668,-524.49832817,0.00016712,2]
[402540978,1768702255677,-500.0,0.00016712,2]
[402540979,1768702255687,-557.8,0.00016712,2]
[402540980,1768702255700,-500.59529764,0.00016712,2]
[402540981,1768702255714,-500.20360614,0.00016712,2]
[402540982,1768702255729,-500.0,0.00016712,2]
[402540983,1768702255744,-500.0,0.00016712,2]
[402540984,1768702255756,-500.0,0.00016712,2]
[402540985,1768702255767,-500.0,0.00016712,2]
[402540986,1768702255781,-596.59080957,0.00016712,2]
[402540987,1768702255794,-500.0,0.00016712,2]
[402540988,1768702255807,-500.0,0.00016712,2]
[402540989,1768702255821,-500.0,0.00016712,2]
[402540990,1768702255834,-500.58552207,0.00016712,2]
[402540991,1768702255848,-500.50831284,0.00016712,2]
[402540992,1768702255861,-620.0,0.00016712,2]
[402540993,1768702255874,-501.20399662,0.00016712,2]
[402540994,1768702255886,-500.0,0.00016712,2]
[402540995,1768702255898,-1756.05,0.00016712,2]
[402540996,1768702255910,-500.0,0.00016712,2]
[402540997,1768702255923,-500.0,0.00016712,2]
[402540998,1768702255937,-501.4679686,0.00016712,2]
[402540999,1768702255949,-500.0,0.00016712,2]
[402541000,1768702255963,-500.0,0.00016712,2]
[402541001,1768702255974,-500.0,0.00016712,2]
[402541002,1768702255987,-500.0,0.00016712,2]
[402541003,1768702255999,-1238.05,0.00016712,2]
[402541004,1768702256013,-500.0,0.00016712,2]
[402541005,1768702256026,-898.84,0.00016712,2]
[402541006,1768702256042,-500.0,0.00016712,2]
[402541007,1768702256056,-1039.14,0.00016712,2]
[402541008,1768702256069,-500.0,0.00016712,2]
[402541009,1768702256082,-500.0,0.00016712,2]
[402541010,1768702256093,-500.0,0.00016712,2]
[402541011,1768702256103,-500.0,0.00016712,2]
[402541012,1768702256113,-500.85731363,0.00016712,2]
[402541013,1768702256125,-566.85,0.00016712,2]
[402541014,1768702256137,-500.0,0.00016712,2]
[402541015,1768702256152,-500.84619184,0.00016712,2]
[402541016,1768702256164,-500.37365941,0.00016712,2]
[402541017,1768702256175,-500.0,0.00016712,2]
[402541018,1768702256187,-500.95284663,0.00016712,2]
[402541019,1768702256200,-500.0,0.00016712,2]
[402541020,1768702256213,-500.0,0.00016712,2]
[402541021,1768702256225,-392.54681722,0.00016712,2]
[402541022,1768702256236,-500.0,0.00016712,2]
[402541023,1768702256247,-623.95,0.00016712,2]
[402541024,1768702256259,-884.16,0.00016712,2]
[402541025,1768702256270,-500.0,0.00016712,2]
[402541026,1768702256282,-500.0,0.00016712,2]
[402541027,1768702256294,-500.0,0.00016712,2]
[402541028,1768702256306,-500.0,0.00016712,2]
[402541029,1768702256318,-957.81,0.00016712,2]
[402541030,1768702256330,-500.96470457,0.00016712,2]
[402541031,1768702256343,-545.25992146,0.00016712,2]
[402541032,1768702256355,-500.0,0.00016712,2]
[402541033,1768702256367,-500.0,0.00016712,2]
[402541034,1768702256380,-1516.69,0.00016712,2]
[402541035,1768702256392,-500.0,0.00016712,2]
[402541036,1768702256403,-530.01,0.00016712,2]
[402541037,1768702256415,-500.0,0.00016712,2]
[402541038,1768702256427,-500.0,0.00016712,2]
[402541039,1768702256438,-501.16909548,0.00016712,2]
[402541040,1768702256450,-501.10269269,0.00016712,2]
[402541041,1768702256461,-501.15257211,0.00016712,2]
[402541042,1768702256472,-812.39,0.00016712,2]
[402541043,1768702256483,-556.3,0.00016712,2]
[402541044,1768702256495,-500.0,0.00016712,2]
[402541045,1768702256507,-500.0,0.00016712,2]
[402541046,1768702256519,-500.0,0.00016712,2]
[402541047,1768702256529,-298.79944499,0.00016712,2]
[402541048,1768702256540,-558.73,0.00016712,2]
[402541049,1768702256551,-500.0,0.00016712,2]
[402541050,1768702256563,-500.0,0.00016712,2]
[402541051,1768702256575,-500.0,0.00016712,2]
[402541052,1768702256586,-511.15,0.00016712,2]
[402541053,1768702256597,-500.0,0.00016712,2]
[402541054,1768702256608,-521.13528901,0.00016712,2]
[402541055,1768702256620,-500.0,0.00016712,2]
[402541056,1768702256631,-500.0,0.00016712,2]
[402541057,1768702256642,-500.0,0.00016712,2]
[402541058,1768702256653,-500.0,0.00016712,2]
[402541059,1768702256664,-500.0,0.00016712,2]
[402541060,1768702256675,-500.0,0.00016712,2]
[402541061,1768702256687,-500.78595809,0.00016712,2]
[402541062,1768702256698,-500.0,0.00016712,2]
[402541063,1768702256709,-500.0,0.00016712,2]
[402541064,1768702256720,-582.14,0.00016712,2]
[402541065,1768702256731,-500.0,0.00016712,2]
[402541066,1768702256741,-501.29412743,0.00016712,2]
[402541067,1768702256753,-500.0,0.00016712,2]
[402541068,1768702256764,-500.0,0.00016712,2]
[402541069,1768702256775,-500.0,0.00016712,2]
[402541070,1768702256786,-500.0,0.00016712,2]
[402541071,1768702256797,-500.0,0.00016712,2]
[402541072,1768702256808,-500.0,0.00016712,2]
[402541073,1768702256819,-242.32774734,0.00016712,2]
[402541074,1768702256830,-971.69,0.00016712,2]
[402541075,1768702256841,-501.08969079,0.00016712,2]
[402541076,1768702256852,-500.0,0.00016712,2]
[402541077,1768702256863,-500.0,0.00016712,2]
[402541078,1768702256874,-520.43598329,0.00016712,2]
[402541079,1768702256886,-501.69588978,0.00016712,2]
[402541080,1768702256901,-500.0,0.00016712,2]
[402541081,1768702256913,-920.37,0.00016712,2]
[402541082,1768702256926,-500.81528413,0.00016712,2]
[402541083,1768702256938,-500.0,0.00016712,2]
[402541084,1768702256948,-500.0,0.00016712,2]
[402541085,1768702256959,-501.02723907,0.00016712,2]
[402541086,1768702256971,-972.64,0.00016712,2]
[402541087,1768702256983,-500.0,0.00016712,2]
[402541088,1768702256994,-500.0,0.00016712,2]
[402541089,1768702257005,-579.99,0.00016712,2]
[402541090,1768702257016,-500.0,0.00016712,2]
[402541091,1768702257026,-500.9300772,0.00016712,2]
[402541092,1768702257038,-651.89,0.00016712,2]
[402541093,1768702257048,-756.25,0.00016712,2]
[402541094,1768702257059,-500.0,0.00016712,2]
[402541095,1768702257070,-500.0,0.00016712,2]
[402541096,1768702257082,-1802.52,0.00016712,2]
[402541097,1768702257093,-500.0,0.00016712,2]
[402541098,1768702257105,-501.4529367,0.00016712,2]
[402541099,1768702257116,-500.0,0.00016712,2]
[402541100,1768702257128,-500.0,0.00016712,2]
[402541101,1768702257139,-500.0,0.00016712,2]
[402541102,1768702257151,-500.0,0.00016712,2]
[402541103,1768702257162,-500.0,0.00016712,2]
[402541104,1768702257174,-500.0,0.00016712,2]
[402541105,1768702257186,-500.0,0.00016712,2]
[402541106,1768702257198,-500.0,0.00016712,2]
[402541107,1768702257210,-500.0,0.00016712,2]
[402541108,1768702257221,-500.0,0.00016712,2]
[402541109,1768702257234,-671.72,0.00016712,2]
[402541110,1768702257247,-825.76,0.00016712,2]
[402541111,1768702257259,-501.63579048,0.00016712,2]
[402541112,1768702257270,-500.0,0.00016712,2]
[402541113,1768702257281,-500.4096594,0.00016712,2]
[402541114,1768702257291,-500.0,0.00016712,2]
[402541115,1768702257303,-629.05,0.00016712,2]
[402541116,1768702257314,-500.0,0.00016712,2]
[402541117,1768702257325,-500.0,0.00016712,2]
[402541118,1768702257336,-500.94033953,0.00016712,2]
[402541119,1768702257347,-1311.27,0.00016712,2]
[402541120,1768702257360,-501.62232326,0.00016712,2]
[402541121,1768702257371,-500.0,0.00016712,2]
[402541122,1768702257383,-500.0,0.00016712,2]
[402541123,1768702257394,-500.0,0.00016712,2]
[402541124,1768702257405,-500.0,0.00016712,2]
[402541125,1768702257416,-500.0,0.00016712,2]
[402541126,1768702257427,-500.0,0.00016712,2]
[402541127,1768702257438,-500.0,0.00016712,2]
[402541128,1768702257449,-500.0,0.00016712,2]
[402541129,1768702257461,-541.97,0.00016712,2]
[402541130,1768702257472,-800.02,0.00016712,2]
[402541131,1768702257483,-500.97272634,0.00016712,2]
[402541132,1768702257494,-500.0,0.00016712,2]
[402541133,1768702257506,-501.17058832,0.00016712,2]
[402541134,1768702257516,-500.0,0.00016712,2]
[402541135,1768702257527,-500.87691602,0.00016712,2]
[402541136,1768702257538,-500.86823554,0.00016712,2]
[402541137,1768702257549,-495.0,0.00016712,2]
[402541138,1768702257562,-879.7,0.00016712,2]
[402541139,1768702257573,-500.0,0.00016712,2]
[402541140,1768702257583,-500.0,0.00016712,2]
[402541141,1768702257596,-501.38665735,0.00016712,2]
[402541142,1768702257610,-500.0,0.00016712,2]
[402541143,1768702257622,-500.0,0.00016712,2]
[402541144,1768702257635,-976.01,0.00016712,2]
[402541145,1768702257646,-500.0,0.00016712,2]
[402541146,1768702257660,-500.0,0.00016712,2]
[402541147,1768702257671,-466.9855326,0.00016712,2]
[402541148,1768702257683,-500.0,0.00016712,2]
[402541149,1768702257695,-834.87,0.00016712,2]
[402541150,1768702257708,-500.0,0.00016712,2]
[402541151,1768702257719,-500.0,0.00016712,2]
[402541152,1768702257730,-500.0,0.00016712,2]
[402541153,1768702257740,-500.0,0.00016712,2]
[402541154,1768702257752,-500.0,0.00016712,2]
[402541155,1768702257763,-500.0,0.00016712,2]
[402541156,1768702257774,-500.0,0.00016712,2]
[402541157,1768702257784,-250.49987667,0.00016712,2]
[402541158,1768702259417,224.8,0.00012329,2]
[402541159,1768702259620,-564.95675188,0.00016438,2]
[402541160,1768702259629,-500.0,0.00016438,2]
[402541161,1768702259639,-500.0,0.00016438,2]
[402541162,1768702259647,-249.50012333,0.00016712,2]
[402541163,1768702259657,-500.0,0.00016712,2]
[402541164,1768702259666,-1077.79,0.00016712,2]
[402541165,1768702259675,-500.0,0.00016712,2]
[402541166,1768702259684,-547.29,0.00016712,2]
[402541167,1768702259694,-500.8942335,0.00016712,2]
[402541168,1768702259703,-500.0,0.00016712,2]
[402541169,1768702259711,-931.01,0.00016712,2]
[402541170,1768702259720,-277.47612255,0.00016712,2]
[402541171,1768702261817,-500.0,0.00016438,2]
[402541172,1768702261827,-222.52387745,0.00016712,2]
[402541173,1768702261836,-500.0,0.00016712,2]
[402541174,1768702261845,-500.0,0.00016712,2]